fUST/lending_fUST_20250816
["ID","MTS","AMOUNT","RATE_DAILY","PERIOD"]
[379638203,1755353441397,-559.46,0.00021917,3]
[379638204,1755353441407,-480.0,0.00021917,3]
[379638205,1755353441416,-480.0,0.00021917,3]
[379638206,1755353441426,-500.0,0.00021917,3]
[379638207,1755353441435,-500.0,0.00021917,3]
[379638208,1755353441444,-500.0,0.00021917,3]
[379638209,1755353441454,-500.0,0.00021917,3]
[379638210,1755353441463,-500.0,0.00021917,3]
[379638211,1755353441472,-500.0,0.00021917,3]
[379638212,1755353441481,-480.0,0.00021917,3]
[379638213,1755353441491,-500.0,0.00021917,3]
[379638214,1755353441500,-293.53,0.00021917,3]
[379638215,1755353441510,-1030.48,0.00021917,3]
[379638216,1755353441519,-420.0,0.00021917,3]
[379638217,1755353441529,-150.92879495,0.00021917,3]
[379638218,1755353441538,-480.0,0.00021917,3]
[379638219,1755353441547,-542.53,0.00021917,3]
[379638220,1755353441557,-480.0,0.00021917,3]
[379638221,1755353441566,-480.0,0.00021917,3]
[379638222,1755353441576,-460.0,0.00021917,3]
[379638223,1755353441585,-440.0,0.00021917,3]
[379638224,1755353441595,-490.03594718,0.00021917,3]
[379638225,1755353441603,-511.09,0.00021917,3]
[379638226,1755353441613,-480.0,0.00021917,3]
[379638227,1755353441622,-625.33,0.00021917,3]
[379638228,1755353441631,-480.0,0.00021917,3]
[379638229,1755353441641,-480.0,0.00021917,3]
[379638230,1755353441650,-480.0,0.00021917,3]
[379638231,1755353441659,-777.47,0.00021917,3]
[379638232,1755353441669,-480.0,0.00021917,3]
[379638233,1755353441678,-460.0,0.00021917,3]
[379638234,1755353441690,-480.0,0.00021917,3]
[379638235,1755353441700,-480.0,0.00021917,3]
[379638236,1755353441709,-480.0,0.00021917,3]
[379638237,1755353441718,-648.88,0.00021917,3]
[379638238,1755353441728,-480.0,0.00021917,3]
[379638239,1755353441737,-480.0,0.00021917,3]
[379638240,1755353441747,-480.0,0.00021917,3]
[379638241,1755353441756,-480.0,0.00021917,3]
[379638242,1755353441767,-480.0,0.00021917,3]
[379638243,1755353441777,-480.0,0.00021917,3]
[379638244,1755353441787,-480.0,0.00021917,3]
[379638245,1755353441796,-480.0,0.00021917,3]
[379638246,1755353441806,-641.35,0.00021917,3]
[379638247,1755353441815,-480.0,0.00021917,3]
[379638248,1755353441824,-1746.42,0.00021917,3]
[379638249,1755353441834,-480.0,0.00021917,3]
[379638250,1755353441843,-480.0,0.00021917,3]
[379638251,1755353441855,-480.0,0.00021917,3]
[379638252,1755353441865,-480.0,0.00021917,3]
[379638253,1755353441875,-480.0,0.00021917,3]
[379638254,1755353441884,-455.24980493,0.00021917,3]
[379638255,1755353441894,-480.0,0.00021917,3]
[379638256,1755353441903,-480.0,0.00021917,3]
[379638257,1755353441913,-157.05823901,0.00021917,3]
[379638258,1755353441922,-480.0,0.00021917,3]
[379638259,1755353441931,-480.0,0.00021917,3]
[379638260,1755353441941,-480.0,0.00021917,3]
[379638261,1755353441950,-480.0,0.00021917,3]
[379638262,1755353441960,-480.0,0.00021917,3]
[379638263,1755353441969,-480.0,0.00021917,3]
[379638264,1755353441979,-480.0,0.00021917,3]
[379638265,1755353441988,-480.0,0.00021917,3]
[379638266,1755353441997,-642.03,0.00021917,3]
[379638267,1755353442006,-578.9574,0.00021917,3]
[379638268,1755353442016,-480.0,0.00021917,3]
[379638269,1755353442026,-1685.93,0.00021917,3]
[379638270,1755353442035,-480.0,0.00021917,3]
[379638271,1755353442045,-480.0,0.00021917,3]
[379638272,1755353442054,-2618.84,0.00021917,3]
[379638273,1755353442064,-480.0,0.00021917,3]
[379638274,1755353442073,-480.0,0.00021917,3]
[379638275,1755353442084,-480.0,0.00021917,3]
[379638276,1755353442093,-480.0,0.00021917,3]
[379638277,1755353442103,-1283.36,0.00021917,3]
[379638278,1755353442113,-480.0,0.00021917,3]
[379638279,1755353442123,-480.0,0.00021917,3]
[379638280,1755353442134,-480.0,0.00021917,3]
[379638281,1755353442143,-480.0,0.00021917,3]
[379638282,1755353442153,-480.0,0.00021917,3]
[379638283,1755353442163,-460.0,0.00021917,3]
[379638284,1755353442172,-480.0,0.00021917,3]
[379638285,1755353442181,-480.0,0.00021917,3]
[379638286,1755353442191,-480.0,0.00021917,3]
[379638287,1755353442200,-493.84178222,0.00021917,3]
[379638288,1755353442209,-480.0,0.00021917,3]
[379638289,1755353442219,-480.0,0.00021917,3]
[379638290,1755353442229,-480.0,0.00021917,3]
[379638291,1755353442239,-480.0,0.00021917,3]
[379638292,1755353442249,-480.0,0.00021917,3]
[379638293,1755353442259,-480.0,0.00021917,3]
[379638294,1755353442268,-480.0,0.00021917,3]
[379638295,1755353442278,-499.57,0.00021917,3]
[379638296,1755353442288,-480.0,0.00021917,3]
[379638297,1755353442298,-480.0,0.00021917,3]
[379638298,1755353442308,-480.0,0.00021917,3]
[379638299,1755353442317,-480.0,0.00021917,3]
[379638300,1755353442326,-480.0,0.00021917,3]
[379638301,1755353442335,-480.0,0.00021917,3]
[379638302,1755353442345,-480.0,0.00021917,3]
[379638303,1755353442354,-480.0,0.00021917,3]
[379638304,1755353442363,-480.0,0.00021917,3]
[379638305,1755353442373,-911.77,0.00021917,3]
[379638306,1755353442382,-460.0,0.00021917,3]
[379638307,1755353442392,-590.8,0.00021917,3]
[379638308,1755353442402,-460.0,0.00021917,3]
[379638309,1755353442415,-480.0,0.00021917,3]
[379638310,1755353442424,-480.0,0.00021917,3]
[379638311,1755353442433,-480.0,0.00021917,3]
[379638312,1755353442443,-462.24178609,0.00021917,3]
[379638313,1755353442453,-480.0,0.00021917,3]
[379638314,1755353442464,-480.0,0.00021917,3]
[379638315,1755353442473,-621.2386712,0.00021917,3]
[379638316,1755353442482,-380.0,0.00021917,3]
[379638317,1755353442491,-480.0,0.00021917,3]
[379638318,1755353442502,-480.0,0.00021917,3]
[379638319,1755353442513,-480.0,0.00021917,3]
[379638320,1755353442522,-480.0,0.00021917,3]
[379638322,1755353442635,-480.0,0.00021917,3]
[379638323,1755353442657,-480.0,0.00021917,3]
[379638325,1755353442668,-460.0,0.00021917,3]
[379638326,1755353442678,-480.0,0.00021917,3]
[379638327,1755353442691,-480.0,0.00021917,3]
[379638328,1755353442702,-480.0,0.00021917,3]
[379638329,1755353442712,-480.0,0.00021917,3]
[379638330,1755353442721,-480.0,0.00021917,3]
[379638331,1755353442731,-561.27,0.00021917,3]
[379638332,1755353442745,-609.53713742,0.00021917,3]
[379638333,1755353442756,-181.87061892,0.00021917,3]
[379638335,1755353442768,-417.15472785,0.00021917,3]
[379638336,1755353442778,-480.0,0.00021917,3]
[379638337,1755353442787,-480.0,0.00021917,3]
[379638338,1755353442797,-480.0,0.00021917,3]
[379638339,1755353442807,-480.0,0.00021917,3]
[379638340,1755353442816,-480.0,0.00021917,3]
[379638341,1755353442825,-480.0,0.00021917,3]
[379638342,1755353442836,-480.0,0.00021917,3]
[379638343,1755353442845,-480.0,0.00021917,3]
[379638344,1755353442855,-480.0,0.00021917,3]
[379638345,1755353442864,-480.0,0.00021917,3]
[379638347,1755353442873,-801.52,0.00021917,3]
[379638349,1755353442883,-1115.43,0.00021917,3]
[379638350,1755353442892,-480.0,0.00021917,3]
[379638352,1755353442900,-480.0,0.00021917,3]
[379638353,1755353442910,-480.0,0.00021917,3]
[379638354,1755353442919,-480.0,0.00021917,3]
[379638355,1755353442929,-4267.9,0.00021917,3]
[379638356,1755353442939,-480.0,0.00021917,3]
[379638357,1755353442948,-427.37111541,0.00021917,3]
[379638358,1755353442958,-480.0,0.00021917,3]
[379638359,1755353442967,-1000.0,0.00021917,3]
[379638360,1755353442977,-850.8,0.00021917,3]
[379638361,1755353442986,-480.0,0.00021917,3]
[379638362,1755353442996,-712.85,0.00021917,3]
[379638363,1755353443005,-480.0,0.00021917,3]
[379638364,1755353443014,-842.65,0.00021917,3]
[379638365,1755353443024,-480.0,0.00021917,3]
[379638366,1755353443033,-480.0,0.00021917,3]
[379638367,1755353443043,-480.0,0.00021917,3]
[379638368,1755353443052,-480.0,0.00021917,3]
[379638369,1755353443061,-1164.13,0.00021917,3]
[379638370,1755353443071,-200.40959558,0.00021917,3]
[379638371,1755353443080,-480.0,0.00021917,3]
[379638372,1755353443090,-945.03,0.00021917,3]
[379638374,1755353443099,-480.0,0.00021917,3]
[379638376,1755353443109,-706.43,0.00021917,2]
[379638378,1755353443127,-480.0,0.00021917,3]
[379638380,1755353443138,-480.0,0.00021917,3]
[379638382,1755353443148,-480.0,0.00021917,3]
[379638384,1755353443157,-480.0,0.00021917,3]
[379638386,1755353443166,-480.0,0.00021917,3]
[379638388,1755353443176,-480.0,0.00021917,3]
[379638390,1755353443186,-1586.41,0.00021917,3]
[379638392,1755353443196,-912.96,0.00021917,3]
[379638394,1755353443207,-460.0,0.00021917,3]
[379638396,1755353443216,-480.0,0.00021917,3]
[379638398,1755353443226,-500.0,0.00021917,3]
[379638400,1755353443235,-480.0,0.00021917,3]
[379638402,1755353443244,-460.0,0.00021917,3]
[379638404,1755353443265,-480.0,0.00021917,3]
[379638407,1755353443307,-500.0,0.00021917,3]
[379638411,1755353443353,-500.0,0.00021917,3]
[379638414,1755353443363,-500.0,0.00021917,3]
[379638417,1755353443373,-460.0,0.00021917,3]
[379638420,1755353443383,-500.0,0.00021917,3]
[379638423,1755353443392,-500.0,0.00021917,3]
[379638425,1755353443401,-500.0,0.00021917,3]
[379638428,1755353443410,-480.0,0.00021917,3]
[379638430,1755353443420,-500.0,0.00021917,3]
[379638432,1755353443429,-480.0,0.00021917,3]
[379638434,1755353443439,-480.0,0.00021917,3]
[379638436,1755353443448,-342.94,0.00021917,3]
[379638438,1755353443457,-517.32,0.00021917,3]
[379638440,1755353443466,-480.0,0.00021917,3]
[379638442,1755353443475,-480.0,0.00021917,3]
[379638445,1755353443484,-480.0,0.00021917,3]
[379638447,1755353443494,-480.0,0.00021917,3]
[379638449,1755353443503,-480.0,0.00021917,3]
[379638451,1755353443513,-1507.41,0.00021917,3]
[379638452,1755353443522,-480.0,0.00021917,3]
[379638455,1755353443532,-462.1417622,0.00021917,3]
[379638457,1755353443541,-1455.76,0.00021917,3]
[379638459,1755353443550,-1538.7,0.00021917,3]
[379638461,1755353443560,-2058.06,0.00021917,3]
[379638463,1755353443569,-480.0,0.00021917,3]
[379638464,1755353443578,-1648.94,0.00021917,3]
[379638466,1755353443587,-725.07,0.00021917,3]
[379638469,1755353443597,-558.34049759,0.00021917,3]
[379638470,1755353443606,-480.0,0.00021917,3]
[379638472,1755353443615,-480.0,0.00021917,3]
[379638474,1755353443625,-480.0,0.00021917,3]
[379638476,1755353443635,-480.0,0.00021917,3]
[379638479,1755353443644,-1440.63,0.00021917,3]
[379638480,1755353443654,-1047.99,0.00021917,3]
[379638482,1755353443662,-446.76545114,0.00021917,3]
[379638484,1755353443672,-1234.75,0.00021917,3]
[379638486,1755353443682,-480.0,0.00021917,3]
[379638489,1755353443695,-1998.03,0.00021917,3]
[379638491,1755353443704,-8181.88,0.00021917,3]
[379638493,1755353443714,-696.66,0.00021917,3]
[379638495,1755353443723,-14304.2,0.00021917,3]
[379638496,1755353443733,-480.0,0.00021917,3]
[379638499,1755353443743,-480.0,0.00021917,3]
[379638501,1755353443752,-1327.91,0.00021917,3]
[379638503,1755353443762,-1241.28,0.00021917,3]
[379638505,1755353443772,-338.74984126,0.00021917,3]
[379638507,1755353443782,-460.0,0.00021917,3]
[379638508,1755353443792,-480.0,0.00021917,3]
[379638510,1755353443801,-480.0,0.00021917,3]
[379638512,1755353443810,-480.0,0.00021917,3]
[379638514,1755353443819,-716.28,0.00021917,3]
[379638516,1755353443829,-480.0,0.00021917,3]
[379638518,1755353443838,-2985.37,0.00021917,3]
[379638520,1755353443847,-480.0,0.00021917,3]
[379638522,1755353443857,-618.47119424,0.00021917,3]
[379638524,1755353443867,-480.0,0.00021917,3]
[379638526,1755353443876,-480.06377375,0.00021917,3]
[379638528,1755353443886,-420.0,0.00021917,3]
[379638530,1755353443895,-1683.56,0.00021917,3]
[379638532,1755353443904,-480.0,0.00021917,3]
[379638534,1755353443914,-480.0,0.00021917,3]
[379638536,1755353443924,-480.0,0.00021917,3]
[379638538,1755353443933,-260.05125079,0.00021917,3]
[379638540,1755353443942,-480.0,0.00021917,3]
[379638542,1755353443952,-1077.63,0.00021917,3]
[379638544,1755353443962,-480.0,0.00021917,3]
[379638546,1755353443971,-480.0,0.00021917,3]
[379638548,1755353443981,-863.07,0.00021917,3]
[379638550,1755353443990,-1370.56,0.00021917,3]
[379638552,1755353443999,-480.0,0.00021917,3]
[379638554,1755353444009,-828.3,0.00021917,3]
[379638556,1755353444020,-480.0,0.00021917,3]
[379638558,1755353444029,-480.0,0.00021917,3]
[379638560,1755353444041,-3864.78,0.00021917,3]
[379638561,1755353444051,-3864.78,0.00021917,3]
[379638563,1755353444060,-480.0,0.00021917,3]
[379638565,1755353444070,-480.0,0.00021917,3]
[379638567,1755353444079,-480.0,0.00021917,3]
[379638569,1755353444089,-1224.19,0.00021917,3]
[379638571,1755353444098,-419.82905163,0.00021917,3]
[379638573,1755353444108,-480.0,0.00021917,3]
[379638576,1755353444118,-481.15,0.00021917,3]
[379638577,1755353444127,-1269.6,0.00021917,3]
[379638579,1755353444137,-480.0,0.00021917,3]
[379638582,1755353444146,-480.0,0.00021917,3]
[379638584,1755353444157,-480.0,0.00021917,3]
[379638586,1755353444167,-480.0,0.00021917,3]
[379638588,1755353444176,-1616.48,0.00021917,3]
[379638590,1755353444185,-480.0,0.00021917,3]
[379638591,1755353444194,-480.0,0.00021917,3]
[379638593,1755353444203,-480.0,0.00021917,3]
[379638595,1755353444212,-480.0,0.00021917,3]
[379638597,1755353444222,-460.0,0.00021917,3]
[379638599,1755353444231,-460.0,0.00021917,3]
[379638601,1755353444240,-989.31,0.00021917,3]
[379638603,1755353444249,-480.0,0.00021917,3]
[379638605,1755353444258,-480.0,0.00021917,3]
[379638607,1755353444268,-3116.88,0.00021917,3]
[379638609,1755353444278,-480.0,0.00021917,3]
[379638611,1755353444287,-664.97,0.00021917,3]
[379638613,1755353444296,-480.0,0.00021917,3]
[379638615,1755353444306,-1870.97,0.00021917,3]
[379638617,1755353444315,-480.0,0.00021917,3]
[379638619,1755353444324,-421.30257787,0.00021917,3]
[379638621,1755353444334,-480.0,0.00021917,3]
[379638623,1755353444343,-480.0,0.00021917,3]
[379638625,1755353444353,-480.0,0.00021917,3]
[379638627,1755353444362,-480.0,0.00021917,3]
[379638629,1755353444371,-480.0,0.00021917,3]
[379638631,1755353444382,-1001.59,0.00021917,3]
[379638633,1755353444391,-2311.19,0.00021917,3]
[379638635,1755353444401,-5094.23,0.00021917,3]
[379638637,1755353444410,-480.0,0.00021917,3]
[379638639,1755353444419,-480.0,0.00021917,3]
[379638641,1755353444429,-1553.37,0.00021917,3]
[379638643,1755353444438,-480.0,0.00021917,3]
[379638645,1755353444447,-480.0,0.00021917,3]
[379638647,1755353444457,-673.23,0.00021917,3]
[379638649,1755353444466,-480.0,0.00021917,3]
[379638651,1755353444475,-564.43,0.00021917,3]
[379638653,1755353444484,-480.0,0.00021917,3]
[379638655,1755353444494,-825.37,0.00021917,3]
[379638657,1755353444504,-480.0,0.00021917,3]
[379638659,1755353444513,-611.28,0.00021917,3]
[379638661,1755353444522,-675.28,0.00021917,3]
[379638663,1755353444531,-480.0,0.00021917,3]
[379638665,1755353444540,-1516.0,0.00021917,3]
[379638667,1755353444549,-1152.23,0.00021917,3]
[379638669,1755353444558,-480.0,0.00021917,3]
[379638671,1755353444568,-1089.15,0.00021917,3]
[379638673,1755353444577,-480.0,0.00021917,3]
[379638675,1755353444586,-480.0,0.00021917,3]
[379638676,1755353444596,-480.0,0.00021917,3]
[379638679,1755353444605,-480.0,0.00021917,3]
[379638681,1755353444614,-480.0,0.00021917,3]
[379638682,1755353444623,-480.0,0.00021917,3]
[379638683,1755353444632,-480.0,0.00021917,3]
[379638684,1755353444641,-3261.08,0.00021917,3]
[379638685,1755353444650,-480.0,0.00021917,3]
[379638686,1755353444659,-480.0,0.00021917,3]
[379638687,1755353444668,-480.0,0.00021917,3]
[379638688,1755353444677,-480.0,0.00021917,3]
[379638689,1755353444689,-480.0,0.00021917,3]
[379638690,1755353444698,-480.0,0.00021917,3]
[379638691,1755353444707,-1559.07,0.00021917,3]
[379638692,1755353444715,-480.0,0.00021917,3]
[379638693,1755353444725,-1488.08,0.00021917,3]
[379638694,1755353444734,-595.78632833,0.00021917,3]
[379638695,1755353444743,-480.0,0.00021917,3]
[379638696,1755353444752,-480.0,0.00021917,3]
[379638697,1755353444763,-480.0,0.00021917,3]
[379638698,1755353444772,-480.0,0.00021917,3]
[379638699,1755353444781,-506.77,0.00021917,3]
[379638700,1755353444790,-480.0,0.00021917,3]
[379638701,1755353444799,-480.0,0.00021917,3]
[379638702,1755353444808,-13739.85,0.00021917,3]
[379638703,1755353444817,-480.0,0.00021917,3]
[379638704,1755353444825,-480.0,0.00021917,3]
[379638705,1755353444834,-480.0,0.00021917,3]
[379638706,1755353444843,-480.0,0.00021917,3]
[379638707,1755353444853,-420.0,0.00021917,3]
[379638708,1755353444862,-480.0,0.00021917,3]
[379638709,1755353444871,-369.45589277,0.00021917,3]
[379638710,1755353444880,-480.0,0.00021917,3]
[379638711,1755353444889,-1408.83,0.00021917,3]
[379638712,1755353444897,-480.0,0.00021917,3]
[379638713,1755353444906,-10254.07,0.00021917,3]
[379638714,1755353444915,-292.96609888,0.00021917,3]
[379638715,1755353444924,-480.0,0.00021917,3]
[379638717,1755353444933,-480.0,0.00021917,3]
[379638719,1755353444943,-480.0,0.00021917,3]
[379638721,1755353444952,-480.0,0.00021917,3]
[379638723,1755353444961,-1051.04,0.00021917,3]
[379638737,1755353444970,-500.0,0.00021917,3]
[379638739,1755353445090,-1187.41,0.00021917,3]
[379638741,1755353445100,-500.0,0.00021917,3]
[379638743,1755353445110,-480.0,0.00021917,3]
[379638745,1755353445121,-3975.4,0.00021917,3]
[379638747,1755353445131,-480.0,0.00021917,3]
[379638749,1755353445142,-480.0,0.00021917,3]
[379638751,1755353445152,-460.0,0.00021917,3]
[379638753,1755353445161,-480.0,0.00021917,3]
[379638755,1755353445170,-565.84,0.00021917,3]
[379638757,1755353445179,-460.0,0.00021917,3]
[379638759,1755353445189,-1716.74,0.00021917,3]
[379638761,1755353445198,-480.0,0.00021917,3]
[379638763,1755353445208,-461.72265976,0.00021917,3]
[379638765,1755353445217,-460.0,0.00021917,3]
[379638767,1755353445227,-480.0,0.00021917,3]
[379638769,1755353445236,-478.14429707,0.00021917,3]
[379638771,1755353445245,-480.0,0.00021917,3]
[379638773,1755353445255,-480.0,0.00021917,3]
[379638775,1755353445265,-480.0,0.00021917,3]
[379638777,1755353445274,-1694.72,0.00021917,3]
[379638779,1755353445284,-480.0,0.00021917,3]
[379638781,1755353445293,-480.0,0.00021917,3]
[379638782,1755353445303,-480.0,0.00021917,3]
[379638783,1755353445312,-480.0,0.00021917,3]
[379638784,1755353445321,-5593.13,0.00021917,3]
[379638785,1755353445330,-478.1006777,0.00021917,3]
[379638786,1755353445340,-480.0,0.00021917,3]
[379638787,1755353445349,-414.60058556,0.00021917,3]
[379638788,1755353445358,-480.0,0.00021917,3]
[379638789,1755353445368,-480.0,0.00021917,3]
[379638790,1755353445377,-480.0,0.00021917,3]
[379638791,1755353445386,-1221.03,0.00021917,3]
[379638792,1755353445395,-480.0,0.00021917,3]
[379638793,1755353445404,-480.0,0.00021917,3]
[379638794,1755353445414,-681.53,0.00021917,3]
[379638795,1755353445424,-480.0,0.00021917,3]
[379638796,1755353445433,-480.0,0.00021917,3]
[379638797,1755353445442,-440.0,0.00021917,3]
[379638798,1755353445451,-480.0,0.00021917,3]
[379638799,1755353445461,-671.59,0.00021917,3]
[379638800,1755353445470,-480.0,0.00021917,3]
[379638801,1755353445479,-1685.708664,0.00021961,2]
[379638802,1755353445488,-500.0,0.00021973,2]
[379638803,1755353445497,-497.43367397,0.00021973,2]
[379638804,1755353445506,-500.0,0.00021973,2]
[379638805,1755353445515,-500.0,0.00021973,2]
[379638806,1755353445524,-393.737612,0.00021973,2]
[379638807,1755353445533,-500.26391624,0.00021973,2]
[379638808,1755353445542,-500.0,0.00021973,2]
[379638809,1755353445551,-500.0,0.00021973,2]
[379638810,1755353445560,-500.0,0.00021973,2]
[379638811,1755353445569,-500.0,0.00021973,2]
[379638812,1755353445578,-500.0,0.00021973,2]
[379638813,1755353445586,-500.0,0.00021973,2]
[379638814,1755353445595,-507.71684695,0.00021973,2]
[379638815,1755353445605,-238.39935909,0.00021973,2]
[379638816,1755353445614,-502.71641354,0.00021973,2]
[379638817,1755353445623,-500.0,0.00021973,2]
[379638819,1755353445632,-500.0,0.00021973,2]
[379638821,1755353445641,-501.30339639,0.00021973,2]
[379638822,1755353445650,-500.0,0.00021973,2]
[379638824,1755353445659,-500.0,0.00021973,2]
[379638826,1755353445668,-500.0,0.00021973,2]
[379638827,1755353445677,-500.0,0.00021973,2]
[379638828,1755353445689,-500.0,0.00021973,2]
[379638830,1755353445699,-500.0,0.00021973,2]
[379638831,1755353445708,-500.0,0.00021973,2]
[379638832,1755353445717,-500.0,0.00021973,2]
[379638833,1755353445727,-500.0,0.00021973,2]
[379638834,1755353445736,-500.0,0.00021973,2]
[379638835,1755353445746,-500.0,0.00021973,2]
[379638836,1755353445755,-500.0,0.00021973,2]
[379638837,1755353445764,-525.41473135,0.00021973,2]
[379638838,1755353445773,-500.0,0.00021973,2]
[379638839,1755353445782,-500.0,0.00021973,2]
[379638840,1755353445791,-227.12227315,0.00021973,2]
[379638841,1755353445800,-504.89955754,0.00021973,2]
[379638842,1755353445809,-753.96313079,0.00021973,2]
[379638843,1755353445820,-3012.83667062,0.00021973,2]
[379638844,1755353445828,-168.0,0.00021988,2]
[379638845,1755353445838,-181.543845,0.0002199,2]
[379638846,1755353445847,-233.0,0.00021995,2]
[379638847,1755353445856,-420.0,0.00021995,2]
[379638848,1755353445865,-270.334755,0.00022,5]
[379638849,1755353445874,-8833.94,0.00022,7]
[379638850,1755353445885,-151.0,0.00022,8]
[379638851,1755353445894,-151.0,0.00022,4]
[379638852,1755353445904,-52819.73,0.00022,2]
[379638853,1755353445913,-164.0,0.00022,2]
[379638854,1755353445923,-170.0,0.00022,2]
[379638855,1755353445932,-181.543845,0.0002201,5]
[379638856,1755353445941,-160.0,0.00022073,2]
[379638857,1755353445950,-221.0,0.0002209,2]
[379638858,1755353445959,-1685.708664,0.00022091,2]
[379638859,1755353445968,-174.59512495,0.00022091,2]
[379638860,1755353445978,-151.0,0.000221,5]
[379638861,1755353445987,-151.0,0.000221,7]
[379638862,1755353445995,-1348.0,0.000221,2]
[379638863,1755353446004,-659.7,0.00022118,3]
[379638864,1755353446013,-168.0,0.0002212,2]
[379638865,1755353446023,-500.0,0.00022173,2]
[379638866,1755353446031,-500.0,0.00022173,2]
[379638867,1755353446040,-309.50605196,0.00022173,2]
[379638868,1755353446050,-501.50738922,0.00022173,2]
[379638869,1755353446059,-411.78390383,0.00022173,2]
[379638870,1755353446069,-601.07143356,0.00022173,2]
[379638871,1755353446078,-500.53606696,0.00022173,2]
[379638872,1755353446087,-500.0,0.00022173,2]
[379638873,1755353446095,-500.0,0.00022173,2]
[379638874,1755353446104,-500.0,0.00022173,2]
[379638875,1755353446113,-349.78746667,0.00022173,2]
[379638876,1755353446122,-6622.03315428,0.00022191,2]
[379638877,1755353446131,-480.0,0.00022191,3]
[379638878,1755353446140,-480.0,0.00022191,3]
[379638879,1755353446149,-480.0,0.00022191,3]
[379638880,1755353446158,-480.0,0.00022191,3]
[379638881,1755353446167,-480.0,0.00022191,3]
[379638882,1755353446176,-480.0,0.00022191,3]
[379638883,1755353446185,-460.0,0.00022191,3]
[379638884,1755353446195,-200.30039571,0.00022191,3]
[379638885,1755353446204,-480.0,0.00022191,3]
[379638886,1755353446213,-480.0,0.00022191,3]
[379638887,1755353446222,-461.08976152,0.00022191,3]
[379638888,1755353446231,-480.0,0.00022191,3]
[379638889,1755353446242,-480.0,0.00022191,3]
[379638890,1755353446251,-480.0,0.00022191,3]
[379638891,1755353446261,-440.0,0.00022191,3]
[379638892,1755353446271,-480.0,0.00022191,3]
[379638893,1755353446280,-440.0,0.00022191,3]
[379638894,1755353446290,-362.33103294,0.00022191,3]
[379638895,1755353446299,-480.0,0.00022191,3]
[379638896,1755353446308,-480.0,0.00022191,3]
[379638897,1755353446318,-480.0,0.00022191,3]
[379638898,1755353446327,-480.0,0.00022191,3]
[379638899,1755353446336,-480.0,0.00022191,3]
[379638900,1755353446346,-460.0,0.00022191,3]
[379638901,1755353446355,-480.0,0.00022191,3]
[379638902,1755353446364,-460.0,0.00022191,3]
[379638903,1755353446374,-442.17522799,0.00022191,3]
[379638904,1755353446384,-480.0,0.00022191,3]
[379638905,1755353446393,-480.0,0.00022191,3]
[379638906,1755353446403,-480.0,0.00022191,3]
[379638907,1755353446412,-480.0,0.00022191,3]
[379638908,1755353446423,-480.0,0.00022191,3]
[379638909,1755353446433,-480.0,0.00022191,3]
[379638910,1755353446442,-480.0,0.00022191,3]